[Event "21st Sants Open 2019"]
[Site "Cotxeres de Sants"]
[Date "2019.08.30"]
[Round "8.17"]
[White "Castellet Menchon, Cora"]
[Black "Carmona Huertas, Juan Antonio"]
[Result "0-1"]
[ECO "D85"]
[WhiteElo "1866"]
[BlackElo "1930"]
[Annotator "NA"]
[PlyCount "92"]
[EventDate "2019.08.22"]
[EventType "swiss"]
[EventCountry "ESP"]
[SourceTitle "playchess.com"]
[Source "ChessBase"]
[SourceQuality "1"]
[TimeControl "40/5400+30:1800+30"]

1. d4 {[%emt 0:07:25]} Nf6 {[%emt 0:00:00]} 2. c4 {[%emt 0:00:21]} g6 {[%emt 0:00:00]} 3. Nc3 {[%emt 0:00:05]} d5 {[%emt 0:00:00]} 4. cxd5 {[%emt 0:00:04]} Nxd5 {[%emt 0:00:00]} 5. e4 {[%emt 0:00:04]} Nxc3 {[%emt 0:00:00]} 6. bxc3 {[%emt 0:00:04]} Bg7 {[%emt 0:00:05]} 7. Be3 {[%emt 0:00:09]} c5 {[%emt 0:00:17]} 8. Qd2 {[%emt 0:00:46]} cxd4 {[%emt 0:01:34]} 9. cxd4 {[%emt 0:00:27]} O-O {[%emt 0:00:19]} 10. Rc1 {[%emt 0:05:08]} Nc6 {[%emt 0:24:30]} 11. d5 {[%emt 0:03:52]} Na5 {[%emt 0:00:12]} 12. Nf3 {[%emt 0:09:20]} b6 {[%emt 0:03:25]} 13. Be2 {[%emt 0:13:06]} f5 {[%emt 0:25:26]} 14. e5 {[%emt 0:15:51]} Bb7 {[%emt 0:00:05]} 15. Rd1 {[%emt 0:01:32]} Rc8 {[%emt 0:02:10]} 16. O-O {[%emt 0:10:37]} Qd7 {[%emt 0:01:39]} 17. e6 {[%emt 0:04:07]} Qa4 {[%emt 0:06:05]} 18. Bh6 {[%emt 0:12:55]} Rc2 {[%emt 0:15:03]} 19. Qg5 {[%emt 0:04:39]} Bf6 {[%emt 0:00:52]} 20. Qe3 {[%emt 0:04:27]} f4 {[%emt 0:10:31]} 21. Qd3 {[%emt 0:02:08]} Rd8 {[%emt 0:00:33]} 22. Ne1 {[%emt 0:01:09]} Rc3 {[%emt 0:02:09]} 23. Qd2 {[%emt 0:01:45]} Rxd5 {[%emt 0:01:53]} 24. Qxf4 {[%emt 0:00:23]} Qxf4 {[%emt 0:01:35]} 25. Bxf4 {[%emt 0:00:02]} Rxd1 {[%emt 0:00:14]} 26. Bxd1 {[%emt 0:00:01]} Ba6 {[%emt 0:00:25]} 27. Nf3 {[%emt 0:01:59]} Bxf1 {[%emt 0:00:06]} 28. Kxf1 {[%emt 0:00:03]} Rc6 {[%emt 0:01:51]} 29. Bd2 {[%emt 0:00:29]} Bc3 {[%emt 0:00:59]} 30. Bxc3 {[%emt 0:01:02]} Rxc3 {[%emt 0:00:01]} 31. a4 {[%emt 0:00:20]} Rc6 {[%emt 0:00:56]} 32. Ng5 {[%emt 0:00:02]} h6 {[%emt 0:00:27]} 33. Nf7 {[%emt 0:00:06]} Kg7 {[%emt 0:01:03]} 34. Bg4 {[%emt 0:01:21]} h5 {[%emt 0:00:34]} 35. Bh3 {[%emt 0:00:41]} Nb3 {[%emt 0:00:59]} 36. g3 {[%emt 0:00:23]} Nd4 {[%emt 0:00:29]} 37. Ng5 {[%emt 0:00:53]} a6 {[%emt 0:01:09]} 38. Ke1 {[%emt 0:00:39]} b5 {[%emt 0:00:30]} 39. axb5 {[%emt 0:00:11]} axb5 {[%emt 0:00:09]} 40. Bg2 {[%emt 0:00:00]} Rd6 {[%emt 0:00:00]} 41. Ne4 {[%emt 0:03:23]} Rxe6 {[%emt 0:01:38]} 42. Kd2 {[%emt 0:00:04]} Ra6 {[%emt 0:01:34]} 43. Kc3 {[%emt 0:00:50]} e5 {[%emt 0:01:48]} 44. f4 {[%emt 0:01:22]} Ra3+ {[%emt 0:02:59]} 45. Kb2 {[%emt 0:00:51]} Rb3+ {[%emt 0:01:14]} 46. Ka2 {[%emt 0:00:12]} Re3 {[%emt 0:00:09]} 0-1

[Event "21st Sants Open 2019"]
[Site "Cotxeres de Sants"]
[Date "2019.08.30"]
[Round "8.19"]
[White "Cabrera Marmol, Manuel"]
[Black "Paton Alvarez, Ivan"]
[Result "0-1"]
[ECO "B21"]
[WhiteElo "1537"]
[BlackElo "1544"]
[Annotator "NA"]
[PlyCount "84"]
[EventDate "2019.08.22"]
[EventType "swiss"]
[EventCountry "ESP"]
[SourceTitle "playchess.com"]
[Source "ChessBase"]
[SourceQuality "1"]
[TimeControl "40/5400+30:1800+30"]

1. e4 {[%emt 0:16:09]} c5 {[%emt 0:00:00]} 2. d4 {[%emt 0:00:11]} cxd4 {[%emt 0:00:00]} 3. c3 {[%emt 0:00:02]} dxc3 {[%emt 0:00:00]} 4. Nxc3 {[%emt 0:00:05]} Nc6 {[%emt 0:00:01]} 5. Nf3 {[%emt 0:00:06]} e6 {[%emt 0:00:09]} 6. Bc4 Be7 {[%emt 0:00:12]} 7. Qe2 {[%emt 0:04:36]} d6 {[%emt 0:01:30]} 8. O-O {[%emt 0:00:12]} Bd7 {[%emt 0:00:36]} 9. Rd1 {[%emt 0:00:23]} a6 {[%emt 0:00:20]} 10. Bf4 {[%emt 0:09:50]} e5 {[%emt 0:09:37]} 11. Be3 {[%emt 0:00:28]} Nf6 {[%emt 0:02:34]} 12. Nd5 {[%emt 0:08:40]} Nxd5 {[%emt 0:08:57]} 13. Bxd5 {[%emt 0:06:13]} O-O {[%emt 0:19:09]} 14. Rd2 {[%emt 0:06:01]} Qc7 {[%emt 0:07:58]} 15. h4 {[%emt 0:06:37]} Bg4 {[%emt 0:12:09]} 16. g3 {[%emt 0:06:09]} Rac8 {[%emt 0:16:18]} 17. Rc1 {[%emt 0:02:57]} Qb8 {[%emt 0:07:38]} 18. Rcd1 {[%emt 0:06:43]} Kh8 {[%emt 0:04:00]} 19. Kg2 {[%emt 0:00:02]} Nb4 {[%emt 0:00:46]} 20. Bb3 {[%emt 0:00:47]} f5 {[%emt 0:00:23]} 21. Bb6 {[%emt 0:09:55]} fxe4 {[%emt 0:01:12]} 22. Qxe4 {[%emt 0:04:51]} Bxf3+ {[%emt 0:00:19]} 23. Qxf3 {[%emt 0:00:03]} Rxf3 {[%emt 0:00:07]} 24. Kxf3 {[%emt 0:00:03]} Rf8+ {[%emt 0:00:32]} 25. Kg2 {[%emt 0:00:08]} Qc8 {[%emt 0:00:41]} 26. Be3 {[%emt 0:00:50]} Qf5 {[%emt 0:01:06]} 27. a3 {[%emt 0:00:56]} Qf3+ {[%emt 0:01:30]} 28. Kg1 {[%emt 0:00:13]} Nc6 {[%emt 0:00:41]} 29. Bd5 {[%emt 0:00:15]} Qg4 {[%emt 0:00:30]} 30. Kh2 {[%emt 0:01:19]} g5 {[%emt 0:01:17]} 31. hxg5 {[%emt 0:02:28]} Bxg5 {[%emt 0:00:27]} 32. Bxg5 {[%emt 0:00:38]} Qxg5 {[%emt 0:00:20]} 33. Kg2 {[%emt 0:01:38]} Qf6 {[%emt 0:03:54]} 34. Be4 {[%emt 0:00:25]} Nd4 {[%emt 0:01:15]} 35. Bxb7 {[%emt 0:01:37]} Qf5 {[%emt 0:00:48]} 36. f4 {[%emt 0:04:22]} Rg8 {[%emt 0:00:31]} 37. fxe5 {[%emt 0:01:00]} dxe5 {[%emt 0:00:23]} 38. Rf2 {[%emt 0:01:23]} Qg6 {[%emt 0:00:16]} 39. Kf1 {[%emt 0:00:35]} Qxg3 {[%emt 0:00:31]} 40. Rg2 {[%emt 0:00:00]} Rf8+ {[%emt 0:00:00]} 41. Kg1 {[%emt 0:01:50]} Ne2+ {[%emt 0:00:31]} 42. Kh1 {[%emt 0:00:54]} Qh3+ {[%emt 0:00:09]} 0-1

[Event "21st Sants Open 2019"]
[Site "Cotxeres de Sants"]
[Date "2019.08.30"]
[Round "8.20"]
[White "Abdelkader Garstka, Adam"]
[Black "Garcia Martinez, Hector"]
[Result "0-1"]
[ECO "B13"]
[WhiteElo "1628"]
[BlackElo "1547"]
[Annotator "NA"]
[PlyCount "118"]
[EventDate "2019.08.22"]
[EventType "swiss"]
[EventCountry "ESP"]
[SourceTitle "playchess.com"]
[Source "ChessBase"]
[SourceQuality "1"]
[TimeControl "40/5400+30:1800+30"]

1. e4 {[%emt 0:00:00]} c6 {[%emt 0:00:00]} 2. d4 {[%emt 0:00:00]} d5 {[%emt 0:00:00]} 3. exd5 {[%emt 0:00:00]} cxd5 {[%emt 0:00:23]} 4. c4 {[%emt 0:01:38]} dxc4 {[%emt 0:01:25]} 5. Bxc4 {[%emt 0:01:10]} Nf6 {[%emt 0:02:58]} 6. Nc3 {[%emt 0:07:08]} g6 {[%emt 0:03:06]} 7. Qb3 {[%emt 0:03:52]} e6 {[%emt 0:00:42]} 8. Nf3 {[%emt 0:03:25]} Bg7 {[%emt 0:00:09]} 9. O-O {[%emt 0:04:28]} O-O {[%emt 0:12:38]} 10. d5 {[%emt 0:01:29]} exd5 {[%emt 0:00:39]} 11. Nxd5 {[%emt 0:06:42]} Nc6 {[%emt 0:09:43]} 12. Bg5 {[%emt 0:15:59]} Na5 {[%emt 0:04:25]} 13. Qb5 {[%emt 0:09:28]} Nxc4 {[%emt 0:00:54]} 14. Bxf6 {[%emt 0:00:31]} Bxf6 {[%emt 0:04:31]} 15. Qxc4 {[%emt 0:00:50]} Bxb2 {[%emt 0:02:39]} 16. Rad1 {[%emt 0:01:10]} Be6 {[%emt 0:10:56]} 17. Qb5 Bxd5 18. Qxb2 {[%emt 0:04:46]} Qa5 {[%emt 0:00:34]} 19. Qe5 {[%emt 0:18:00]} Rad8 {[%emt 0:01:59]} 20. Rd3 {[%emt 0:02:39]} Rfe8 {[%emt 0:01:08]} 21. Qg5 {[%emt 0:02:39]} h6 {[%emt 0:02:56]} 22. Qxh6 {[%emt 0:01:35]} Bxf3 {[%emt 0:00:29]} 23. Rxf3 {[%emt 0:02:27]} Qxa2 {[%emt 0:03:17]} 24. h4 {[%emt 0:02:34]} Re5 {[%emt 0:05:50]} 25. Rf6 {[%emt 0:03:56]} Qd5 {[%emt 0:06:07]} 26. g4 {[%emt 0:02:34]} Qe4 {[%emt 0:06:47]} 27. Rf4 {[%emt 0:03:20]} Qe2 {[%emt 0:01:03]} 28. h5 {[%emt 0:00:17]} gxh5 {[%emt 0:00:00]} 29. gxh5 Qxh5 30. Qxh5 {[%emt 0:01:27]} Rxh5 {[%emt 0:03:46]} 31. Rb1 {[%emt 0:00:37]} Rd7 32. Rfb4 {[%emt 0:00:05]} b6 {[%emt 0:00:37]} 33. Ra4 {[%emt 0:00:40]} f6 {[%emt 0:02:03]} 34. Kg2 Rg7+ {[%emt 0:00:04]} 35. Kf3 {[%emt 0:00:40]} Rh3+ {[%emt 0:00:07]} 36. Ke2 {[%emt 0:00:14]} Re7+ {[%emt 0:00:21]} 37. Kd2 {[%emt 0:01:03]} Rf3 {[%emt 0:00:14]} 38. Rf1 {[%emt 0:00:39]} Kf7 {[%emt 0:03:23]} 39. Kd1 {[%emt 0:00:00]} Rc7 {[%emt 0:00:00]} 40. Ke2 {[%emt 0:00:00]} Rfc3 {[%emt 0:00:00]} 41. Ra6 {[%emt 0:09:03]} b5 {[%emt 0:06:10]} 42. Rfa1 Re7+ {[%emt 0:00:07]} 43. Kf1 {[%emt 0:01:35]} Rcc7 {[%emt 0:00:04]} 44. Rb1 {[%emt 0:00:48]} Rb7 {[%emt 0:00:43]} 45. Rb4 {[%emt 0:00:27]} Re6 {[%emt 0:00:06]} 46. Ra5 {[%emt 0:03:14]} a6 {[%emt 0:00:12]} 47. f4 {[%emt 0:00:36]} f5 {[%emt 0:00:38]} 48. Kf2 {[%emt 0:01:15]} Rbb6 {[%emt 0:00:45]} 49. Kf3 {[%emt 0:01:43]} Kf6 {[%emt 0:00:26]} 50. Ra1 {[%emt 0:01:08]} Rbc6 {[%emt 0:00:28]} 51. Rab1 {[%emt 0:00:49]} Rc3+ {[%emt 0:00:04]} 52. Kf2 Rc4 {[%emt 0:00:03]} 53. Rxc4 {[%emt 0:00:52]} bxc4 54. Rc1 {[%emt 0:00:00]} Rc6 {[%emt 0:00:37]} 55. Rc3 {[%emt 0:00:57]} Ke6 {[%emt 0:00:00]} 56. Ke3 {[%emt 0:00:19]} Kd5 {[%emt 0:00:16]} 57. Rc2 {[%emt 0:01:13]} Re6+ {[%emt 0:00:07]} 58. Kf3 {[%emt 0:01:30]} Kc5 {[%emt 0:01:38]} 59. Rb2 Kd4 0-1

[Event "21st Sants Open 2019"]
[Site "Cotxeres de Sants"]
[Date "2019.08.31"]
[Round "9.2"]
[White "Arjun Kalyan"]
[Black "Harsha Bharathakoti"]
[Result "0-1"]
[ECO "B51"]
[WhiteElo "2482"]
[BlackElo "2489"]
[Annotator "ChessBase"]
[PlyCount "52"]
[EventDate "2019.08.22"]
[EventType "swiss"]
[EventCountry "ESP"]
[SourceTitle "playchess.com"]
[Source "ChessBase"]
[SourceQuality "1"]
[TimeControl "40/5400+30:1800+30"]

1. e4 {[%emt 0:00:00]} c5 {[%emt 0:03:29]} 2. Nf3 {[%emt 0:00:00]} d6 {[%emt 0:00:17]} 3. Bb5+ {[%emt 0:00:00]} Nd7 {[%emt 0:00:34]} 4. O-O {[%emt 0:00:10]} Ngf6 {[%emt 0:05:16]} 5. Re1 {[%emt 0:00:13]} a6 {[%emt 0:00:05]} 6. Bd3 {[%emt 0:00:18]} e6 {[%emt 0:01:02]} 7. c3 {[%emt 0:00:30]} b5 {[%emt 0:03:44]} 8. Bc2 {[%emt 0:00:27]} c4 {[%emt 0:02:06]} 9. a4 {[%emt 0:00:20]} Bb7 {[%emt 0:00:12]} 10. d4 {[%emt 0:00:10]} cxd3 {[%emt 0:00:10]} 11. Qxd3 {[%emt 0:00:12]} Nc5 {[%emt 0:00:47]} 12. Qe2 {[%emt 0:00:07]} bxa4 {[%emt 0:00:21]} 13. e5 {[%emt 0:00:20]} dxe5 {[%emt 0:00:23]} 14. Nxe5 {[%emt 0:00:08]} Qd5 {[%emt 0:00:17]} 15. f3 {[%emt 0:00:24]} Bd6 {[%emt 0:06:38]} 16. Nd2 {[%emt 0:01:09]} Bxe5 {[%emt 0:04:25]} 17. Qxe5 {[%emt 0:00:02]} Qxe5 {[%emt 0:00:25]} 18. Rxe5 {[%emt 0:00:02]} Nfd7 {[%emt 0:00:22]} 19. Rh5 {[%emt 0:00:18]} f5 {[%emt 0:22:48]} 20. Nc4 {[%emt 0:18:27]} O-O {[%emt 0:03:55]} 21. Na5 {[%emt 0:25:46]} Rab8 {[%emt 0:07:14]} 22. Rh4 {[%emt 0:05:30]} Ba8 {[%emt 0:11:52]} 23. Rb4 {[%emt 0:04:25]} Rb5 {[%emt 0:01:57]} 24. Nc4 {[%emt 0:04:03]} Rfb8 {[%emt 0:05:02]} 25. Bd2 {[%emt 0:11:16]} Bd5 {[%emt 0:01:53]} 26. Bxa4 {[%emt 0:07:36]} Rxb4 {[%emt 0:00:34]} 0-1

[Event "21st Sants Open 2019"]
[Site "Cotxeres de Sants"]
[Date "2019.08.31"]
[Round "9.3"]
[White "Vaibhav, Suri"]
[Black "Hillarp Persson, Tiger"]
[Result "1-0"]
[ECO "B53"]
[WhiteElo "2591"]
[BlackElo "2558"]
[Annotator "ChessBase"]
[PlyCount "115"]
[EventDate "2019.08.22"]
[EventType "swiss"]
[EventCountry "ESP"]
[SourceTitle "playchess.com"]
[Source "ChessBase"]
[SourceQuality "1"]
[TimeControl "40/5400+30:1800+30"]

1. e4 {[%emt 0:00:00]} c5 {[%emt 0:00:00]} 2. Nf3 {[%emt 0:00:03]} d6 {[%emt 0:00:00]} 3. d4 {[%emt 0:00:12]} cxd4 {[%emt 0:00:00]} 4. Qxd4 {[%emt 0:00:08]} Nc6 {[%emt 0:00:50]} 5. Qe3 {[%emt 0:00:28]} g6 {[%emt 0:28:33]} 6. Be2 {[%emt 0:00:13]} Bg7 {[%emt 0:00:17]} 7. O-O {[%emt 0:00:15]} Nh6 {[%emt 0:05:22]} 8. h3 {[%emt 0:00:17]} O-O {[%emt 0:00:14]} 9. Rd1 {[%emt 0:00:05]} f5 {[%emt 0:05:41]} 10. e5 {[%emt 0:00:15]} Nf7 {[%emt 0:00:09]} 11. exd6 {[%emt 0:12:00]} Nxd6 {[%emt 0:09:29]} 12. Qb3+ {[%emt 0:03:10]} Kh8 {[%emt 0:00:27]} 13. Nc3 {[%emt 0:00:13]} Qe8 {[%emt 0:25:59]} 14. Be3 {[%emt 0:30:15]} h6 {[%emt 0:01:23]} 15. Bc5 {[%emt 0:14:21]} g5 {[%emt 0:00:21]} 16. Bxd6 {[%emt 0:09:45]} exd6 {[%emt 0:00:06]} 17. Rxd6 {[%emt 0:00:21]} Qe7 {[%emt 0:04:26]} 18. Qa3 {[%emt 0:04:38]} g4 {[%emt 0:05:01]} 19. Nd5 {[%emt 0:04:48]} Qxe2 {[%emt 0:00:21]} 20. Nf4 {[%emt 0:00:34]} gxf3 {[%emt 0:00:21]} 21. Nxe2 {[%emt 0:00:50]} fxe2 {[%emt 0:00:07]} 22. Re1 {[%emt 0:02:46]} f4 {[%emt 0:00:05]} 23. Rxe2 {[%emt 0:00:46]} f3 {[%emt 0:00:09]} 24. Re3 {[%emt 0:02:25]} fxg2 {[%emt 0:00:09]} 25. Rg3 {[%emt 0:00:17]} Bf5 {[%emt 0:00:11]} 26. Rxg7 {[%emt 0:04:36]} Kxg7 {[%emt 0:00:28]} 27. Qc3+ {[%emt 0:00:57]} Kh7 {[%emt 0:01:06]} 28. Qe3 {[%emt 0:00:17]} Bg6 {[%emt 0:01:02]} 29. Qe6 {[%emt 0:01:28]} Rg8 {[%emt 0:00:17]} 30. Rd7+ {[%emt 0:00:41]} Rg7 {[%emt 0:00:08]} 31. Rxg7+ {[%emt 0:00:18]} Kxg7 {[%emt 0:00:08]} 32. Qd7+ {[%emt 0:00:01]} Bf7 {[%emt 0:00:12]} 33. Qxb7 {[%emt 0:00:33]} Rd8 {[%emt 0:00:09]} 34. c4 {[%emt 0:02:56]} Ne5 {[%emt 0:05:25]} 35. b3 {[%emt 0:00:37]} Kf6 {[%emt 0:01:29]} 36. Kxg2 {[%emt 0:02:46]} Be8 {[%emt 0:06:03]} 37. Qh7 {[%emt 0:01:40]} Bc6+ {[%emt 0:01:31]} 38. Kh2 {[%emt 0:00:09]} Nf7 {[%emt 0:00:42]} 39. Kg3 {[%emt 0:01:50]} Re8 {[%emt 0:00:32]} 40. Qd3 {[%emt 0:00:00]} Rd8 {[%emt 0:00:00]} 41. Qe3 {[%emt 0:06:27]} Ng5 {[%emt 0:13:23]} 42. h4 {[%emt 0:03:39]} Ne6 {[%emt 0:02:22]} 43. Qxh6+ {[%emt 0:02:08]} Kf5 {[%emt 0:01:29]} 44. Qh7+ {[%emt 0:03:10]} Kf6 {[%emt 0:00:34]} 45. h5 {[%emt 0:07:20]} Rd1 {[%emt 0:01:58]} 46. Qh6+ {[%emt 0:01:23]} Kf7 {[%emt 0:01:35]} 47. f3 {[%emt 0:03:01]} a5 {[%emt 0:11:12]} 48. Kf2 {[%emt 0:02:46]} Ke7 {[%emt 0:01:08]} 49. Qh7+ {[%emt 0:00:51]} Kd6 {[%emt 0:00:38]} 50. h6 {[%emt 0:01:13]} Ra1 {[%emt 0:01:06]} 51. c5+ {[%emt 0:02:39]} Kxc5 {[%emt 0:00:27]} 52. Qc2+ {[%emt 0:00:41]} Kb6 {[%emt 0:00:19]} 53. Qe2 {[%emt 0:01:17]} Nc5 {[%emt 0:00:37]} 54. h7 {[%emt 0:01:09]} Rh1 {[%emt 0:00:22]} 55. Qe7 {[%emt 0:00:18]} Nd3+ {[%emt 0:00:41]} 56. Kg3 {[%emt 0:00:31]} Ne1 {[%emt 0:00:44]} 57. Qd8+ {[%emt 0:00:44]} Kc5 {[%emt 0:00:29]} 58. Qxa5+ {[%emt 0:00:34]} 1-0

[Event "21st Sants Open 2019"]
[Site "Cotxeres de Sants"]
[Date "2019.08.31"]
[Round "9.4"]
[White "Valderrama Quiceno, Esteban Alb"]
[Black "Bauer, Christian"]
[Result "0-1"]
[ECO "A05"]
[WhiteElo "2429"]
[BlackElo "2626"]
[Annotator "RC"]
[PlyCount "80"]
[EventDate "2019.08.22"]
[EventType "swiss"]
[EventCountry "ESP"]
[SourceTitle "playchess.com"]
[Source "ChessBase"]
[SourceQuality "1"]
[TimeControl "40/5400+30:1800+30"]

1. Nf3 {[%emt 0:01:24]} Nf6 {[%emt 0:00:00]} 2. g3 {[%emt 0:00:24]} c6 {[%emt 0:00:00]} 3. Bg2 {[%emt 0:00:12]} d6 {[%emt 0:00:00]} 4. d4 {[%emt 0:08:02]} Nbd7 {[%emt 0:01:53]} 5. c4 {[%emt 0:10:42]} e5 {[%emt 0:00:57]} 6. Nc3 {[%emt 0:06:27]} e4 {[%emt 0:00:59]} 7. Nd2 {[%emt 0:06:06]} d5 {[%emt 0:03:27]} 8. O-O {[%emt 0:00:24]} Be7 {[%emt 0:03:05]} 9. cxd5 {[%emt 0:08:25]} cxd5 {[%emt 0:00:10]} 10. Qb3 {[%emt 0:05:40]} Nb6 {[%emt 0:05:15]} 11. a4 {[%emt 0:00:35]} a5 {[%emt 0:05:13]} 12. Ndb1 {[%emt 0:08:36]} O-O {[%emt 0:04:21]} 13. Nb5 {[%emt 0:05:18]} Bg4 {[%emt 0:07:24]} 14. N1c3 {[%emt 0:04:05]} Rc8 {[%emt 0:03:33]} 15. f3 {[%emt 0:05:29]} exf3 {[%emt 0:03:14]} 16. exf3 {[%emt 0:00:12]} Bf5 {[%emt 0:05:11]} 17. Bf4 {[%emt 0:02:33]} Bb4 {[%emt 0:06:42]} 18. g4 {[%emt 0:04:28]} Bd3 {[%emt 0:05:40]} 19. Rf2 {[%emt 0:00:20]} Re8 {[%emt 0:00:44]} 20. Qd1 {[%emt 0:01:04]} Bxb5 {[%emt 0:08:23]} 21. axb5 {[%emt 0:03:57]} Nc4 {[%emt 0:01:50]} 22. Qb3 {[%emt 0:02:35]} Qb6 {[%emt 0:13:00]} 23. Bg5 {[%emt 0:02:00]} Nxb2 {[%emt 0:02:57]} 24. Na2 {[%emt 0:01:48]} Nc4 {[%emt 0:00:40]} 25. Nxb4 {[%emt 0:00:13]} axb4 {[%emt 0:00:18]} 26. Rd1 {[%emt 0:01:39]} h6 {[%emt 0:01:57]} 27. Bf4 {[%emt 0:00:26]} Qxb5 {[%emt 0:05:06]} 28. Bf1 {[%emt 0:02:26]} Qb6 {[%emt 0:00:10]} 29. h3 {[%emt 0:08:26]} Nh7 {[%emt 0:04:17]} 30. Bd3 {[%emt 0:00:23]} Ng5 {[%emt 0:00:18]} 31. Kh2 {[%emt 0:00:20]} Ne6 {[%emt 0:00:56]} 32. Bg3 {[%emt 0:00:04]} Nxd4 {[%emt 0:00:59]} 33. Qb1 {[%emt 0:00:13]} b3 {[%emt 0:03:30]} 34. h4 {[%emt 0:00:27]} Re3 {[%emt 0:01:16]} 35. Kg2 {[%emt 0:00:22]} Rce8 {[%emt 0:00:49]} 36. g5 {[%emt 0:01:28]} R3e6 {[%emt 0:00:57]} 37. Kh3 {[%emt 0:00:25]} Ne3 {[%emt 0:00:17]} 38. Rdd2 {[%emt 0:00:12]} Nc4 {[%emt 0:02:18]} 39. Rd1 {[%emt 0:00:28]} Na3 {[%emt 0:00:49]} 40. Qb2 {[%emt 0:00:00]} Nac2 {[%emt 0:00:00]} 0-1

[Event "21st Sants Open 2019"]
[Site "Cotxeres de Sants"]
[Date "2019.08.31"]
[Round "9.5"]
[White "Antal, Gergely"]
[Black "Bosch, Jeroen"]
[Result "1-0"]
[ECO "B27"]
[WhiteElo "2549"]
[BlackElo "2422"]
[Annotator "ChessBase"]
[PlyCount "65"]
[EventDate "2019.08.22"]
[EventType "swiss"]
[EventCountry "ESP"]
[SourceTitle "playchess.com"]
[Source "ChessBase"]
[SourceQuality "1"]
[TimeControl "40/5400+30:1800+30"]

1. e4 c5 2. Nf3 g6 3. d4 cxd4 4. Qxd4 Nf6 5. Nc3 Nc6 6. Qa4 d6 7. e5 dxe5 8. Nxe5 Bd7 9. Nxd7 Nxd7 10. Be3 Bg7 11. Rd1 O-O 12. Be2 e6 13. h4 Qe7 14. Bg5 f6 15. Bf4 Nb6 16. Qb3 Rfd8 17. Be3 f5 18. h5 Rxd1+ 19. Bxd1 Na5 20. Qb5 Nbc4 21. hxg6 hxg6 22. Bc5 Qd8 23. O-O a6 24. Qb4 b5 25. Bf3 Rc8 26. Rd1 Qc7 27. Bd6 Qb6 28. b3 Nxd6 29. Rxd6 Qc7 30. Nd5 exd5 31. Bxd5+ Kh7 32. Qh4+ Bh6 33. Re6 1-0

[Event "21st Sants Open 2019"]
[Site "Cotxeres de Sants"]
[Date "2019.08.31"]
[Round "9.7"]
[White "Gines Esteo, Pedro Antonio"]
[Black "Salinas Herrera, Pablo"]
[Result "1-0"]
[ECO "D02"]
[WhiteElo "2417"]
[BlackElo "2506"]
[Annotator "RC"]
[PlyCount "91"]
[EventDate "2019.08.22"]
[EventType "swiss"]
[EventCountry "ESP"]
[SourceTitle "playchess.com"]
[Source "ChessBase"]
[SourceQuality "1"]
[TimeControl "40/5400+30:1800+30"]

1. d4 {[%emt 0:08:28]} d5 {[%emt 0:01:35]} 2. Nf3 {[%emt 0:00:17]} e6 {[%emt 0:01:23]} 3. c4 {[%emt 0:07:51]} a6 {[%emt 0:00:53]} 4. cxd5 {[%emt 0:05:06]} exd5 {[%emt 0:00:05]} 5. Bg5 {[%emt 0:00:17]} Be7 {[%emt 0:02:12]} 6. Bxe7 {[%emt 0:00:05]} Qxe7 {[%emt 0:00:16]} 7. Nc3 {[%emt 0:01:31]} Nf6 {[%emt 0:00:06]} 8. Qc2 {[%emt 0:02:47]} O-O {[%emt 0:07:56]} 9. e3 {[%emt 0:01:03]} c5 {[%emt 0:03:58]} 10. dxc5 {[%emt 0:01:12]} Nc6 {[%emt 0:00:23]} 11. Be2 {[%emt 0:01:39]} Qxc5 {[%emt 0:02:06]} 12. Rd1 {[%emt 0:18:17]} Be6 {[%emt 0:04:00]} 13. O-O {[%emt 0:00:26]} Rac8 {[%emt 0:03:05]} 14. Qb1 {[%emt 0:05:07]} Rfd8 {[%emt 0:11:01]} 15. Nd4 {[%emt 0:12:45]} Qe7 {[%emt 0:09:52]} 16. Nxc6 {[%emt 0:01:39]} bxc6 {[%emt 0:00:07]} 17. Bxa6 {[%emt 0:01:35]} Rb8 {[%emt 0:00:06]} 18. Ne2 {[%emt 0:09:28]} Bg4 {[%emt 0:03:05]} 19. h3 {[%emt 0:06:51]} Bh5 {[%emt 0:01:06]} 20. b3 {[%emt 0:02:26]} Ne4 {[%emt 0:00:21]} 21. Qc2 {[%emt 0:00:38]} c5 {[%emt 0:15:38]} 22. Bd3 {[%emt 0:01:01]} f5 {[%emt 0:00:04]} 23. Rc1 {[%emt 0:00:37]} Rbc8 {[%emt 0:00:07]} 24. Rfe1 {[%emt 0:05:33]} Qg5 {[%emt 0:00:28]} 25. Nf4 {[%emt 0:00:33]} Bf7 {[%emt 0:00:07]} 26. Red1 {[%emt 0:01:29]} Qe7 {[%emt 0:08:03]} 27. Ba6 {[%emt 0:00:59]} Ra8 {[%emt 0:02:19]} 28. Bd3 {[%emt 0:00:01]} Rdc8 {[%emt 0:07:24]} 29. Be2 {[%emt 0:01:50]} Qe5 {[%emt 0:00:39]} 30. Bf3 {[%emt 0:00:18]} c4 {[%emt 0:05:50]} 31. Rd4 {[%emt 0:01:18]} g5 {[%emt 0:05:02]} 32. Ne2 {[%emt 0:00:07]} Nd6 {[%emt 0:00:46]} 33. Rcd1 {[%emt 0:01:44]} cxb3 {[%emt 0:00:04]} 34. Qxb3 {[%emt 0:00:07]} Ne4 {[%emt 0:00:02]} 35. a4 {[%emt 0:01:32]} Nf6 {[%emt 0:01:51]} 36. g3 {[%emt 0:00:24]} Rab8 {[%emt 0:00:32]} 37. Qa3 {[%emt 0:00:58]} Rc2 {[%emt 0:03:24]} 38. Rc1 {[%emt 0:00:15]} Qc7 {[%emt 0:00:58]} 39. Rdd1 {[%emt 0:00:36]} Rc4 {[%emt 0:00:57]} 40. a5 {[%emt 0:00:00]} Rb5 {[%emt 0:00:00]} 41. Ra1 {[%emt 0:13:57]} Rcc5 {[%emt 0:05:07]} 42. a6 {[%emt 0:00:11]} Ra5 {[%emt 0:00:03]} 43. Qb2 {[%emt 0:02:06]} Ne8 {[%emt 0:00:48]} 44. Nd4 {[%emt 0:01:13]} Nd6 {[%emt 0:00:02]} 45. Nb3 {[%emt 0:00:33]} Rxa1 {[%emt 0:02:03]} 46. Qxa1 {[%emt 0:00:23]} 1-0